[Event "Early-Titled-Tuesday-Blitz-July-09-2024"]
[Site "Chess.com"]
[Date "2024.07.09"]
[Round "2"]
[White "Mikhail_Golubev"]
[Black "ChessFighter_2011"]
[Result "1/2-1/2"]
[WhiteElo "2649"]
[BlackElo "2946"]
[TimeControl "180+1"]
[EndTime "8:18:36 PDT"]
[Termination "Game drawn by stalemate"]

1. e4 {[%clk 0:03:00.9]} 1... c5 {[%clk 0:02:59.4]} 2. Nf3 {[%clk 0:03:00.3]}
2... d6 {[%clk 0:02:56.3]} 3. d4 {[%clk 0:02:59.6]} 3... cxd4 {[%clk 0:02:57.2]}
4. Nxd4 {[%clk 0:02:59.7]} 4... Nf6 {[%clk 0:02:57.7]} 5. Nc3 {[%clk 0:03:00]}
5... a6 {[%clk 0:02:58.3]} 6. Bc4 {[%clk 0:02:59.8]} 6... e6 {[%clk 0:02:53.7]}
7. O-O {[%clk 0:02:59.7]} 7... b5 {[%clk 0:02:53.5]} 8. Bb3 {[%clk 0:02:59]}
8... Bb7 {[%clk 0:02:54]} 9. Re1 {[%clk 0:02:58.2]} 9... Nc6 {[%clk 0:02:31.4]}
10. a4 {[%clk 0:02:10.6]} 10... b4 {[%clk 0:02:10.4]} 11. Nxc6 {[%clk
0:02:03.5]} 11... Bxc6 {[%clk 0:02:11.3]} 12. Nd5 {[%clk 0:02:03.5]} 12... a5
{[%clk 0:02:03]} 13. Bg5 {[%clk 0:01:43.1]} 13... Be7 {[%clk 0:01:17.2]} 14.
Bxf6 {[%clk 0:01:14.8]} 14... Bxf6 {[%clk 0:01:12.5]} 15. Nxf6+ {[%clk
0:01:12.1]} 15... gxf6 {[%clk 0:01:12.4]} 16. Qh5 {[%clk 0:01:02.6]} 16... Ke7
{[%clk 0:01:00.8]} 17. Rad1 {[%clk 0:00:55.1]} 17... Qb6 {[%clk 0:00:35.8]} 18.
Rd3 {[%clk 0:00:33.7]} 18... Qc5 {[%clk 0:00:32.9]} 19. Qxc5 {[%clk 0:00:21.3]}
19... dxc5 {[%clk 0:00:33.1]} 20. Bd5 {[%clk 0:00:20.3]} 20... Bxd5 {[%clk
0:00:16.9]} 21. exd5 {[%clk 0:00:19.7]} 21... Rad8 {[%clk 0:00:17.2]} 22. dxe6
{[%clk 0:00:18.3]} 22... fxe6 {[%clk 0:00:18.1]} 23. Red1 {[%clk 0:00:17]} 23...
Rxd3 {[%clk 0:00:17.2]} 24. Rxd3 {[%clk 0:00:16.6]} 24... c4 {[%clk 0:00:17.5]}
25. Rd4 {[%clk 0:00:16.1]} 25... Rc8 {[%clk 0:00:17.2]} 26. Kf1 {[%clk
0:00:15.8]} 26... Rc5 {[%clk 0:00:17.2]} 27. Ke2 {[%clk 0:00:15.2]} 27... h5
{[%clk 0:00:17.7]} 28. f4 {[%clk 0:00:14.7]} 28... h4 {[%clk 0:00:16.7]} 29. Kf3
{[%clk 0:00:13]} 29... f5 {[%clk 0:00:15]} 30. Rd1 {[%clk 0:00:11.8]} 30... c3
{[%clk 0:00:11.8]} 31. b3 {[%clk 0:00:11.1]} 31... Rc7 {[%clk 0:00:11.6]} 32. h3
{[%clk 0:00:10.7]} 32... Rc8 {[%clk 0:00:11.1]} 33. g3 {[%clk 0:00:09.7]} 33...
hxg3 {[%clk 0:00:10.8]} 34. Kxg3 {[%clk 0:00:10]} 34... Rg8+ {[%clk 0:00:11.7]}
35. Kf3 {[%clk 0:00:10.2]} 35... Rh8 {[%clk 0:00:12.6]} 36. Kg3 {[%clk
0:00:10.3]} 36... Rg8+ {[%clk 0:00:13.1]} 37. Kf3 {[%clk 0:00:10.6]} 37... Rg6
{[%clk 0:00:13.6]} 38. Re1 {[%clk 0:00:09.2]} 38... Kd6 {[%clk 0:00:13.5]} 39.
Rd1+ {[%clk 0:00:08.9]} 39... Kc6 {[%clk 0:00:14]} 40. Re1 {[%clk 0:00:08.2]}
40... Rh6 {[%clk 0:00:14.2]} 41. Re2 {[%clk 0:00:08]} 41... Rxh3+ {[%clk
0:00:13.6]} 42. Kg2 {[%clk 0:00:08.5]} 42... Rh6 {[%clk 0:00:14]} 43. Re5 {[%clk
0:00:08.3]} 43... Rh4 {[%clk 0:00:12.8]} 44. Kg3 {[%clk 0:00:07.3]} 44... Rg4+
{[%clk 0:00:13.1]} 45. Kf3 {[%clk 0:00:07.5]} 45... Rg1 {[%clk 0:00:13.6]} 46.
Rxe6+ {[%clk 0:00:07.2]} 46... Kd5 {[%clk 0:00:11.3]} 47. Re5+ {[%clk
0:00:07.6]} 47... Kd4 {[%clk 0:00:11.5]} 48. Re2 {[%clk 0:00:06.8]} 48... Rf1+
{[%clk 0:00:11.3]} 49. Kg3 {[%clk 0:00:06.9]} 49... Rd1 {[%clk 0:00:11.7]} 50.
Kf3 {[%clk 0:00:06.8]} 50... Rc1 {[%clk 0:00:11.4]} 51. Kf2 {[%clk 0:00:06.2]}
51... Rh1 {[%clk 0:00:10.4]} 52. Kf3 {[%clk 0:00:05.8]} 52... Rb1 {[%clk
0:00:10.7]} 53. Kf2 {[%clk 0:00:05.7]} 53... Rb2 {[%clk 0:00:11.3]} 54. Kf3
{[%clk 0:00:05.7]} 54... Rxc2 {[%clk 0:00:11.9]} 55. Rxc2 {[%clk 0:00:05.1]}
55... Kd3 {[%clk 0:00:12.6]} 56. Rc1 {[%clk 0:00:03.9]} 56... Kd2 {[%clk
0:00:12.3]} 57. Rh1 {[%clk 0:00:03.9]} 57... c2 {[%clk 0:00:12.9]} 58. Rh2+
{[%clk 0:00:04.1]} 58... Kc3 {[%clk 0:00:13.5]} 59. Rh1 {[%clk 0:00:03.3]} 59...
Kxb3 {[%clk 0:00:13.9]} 60. Ke3 {[%clk 0:00:03.3]} 60... Kb2 {[%clk 0:00:12.7]}
61. Kd2 {[%clk 0:00:03.4]} 61... b3 {[%clk 0:00:13.3]} 62. Rc1 {[%clk
0:00:03.1]} 62... Ka2 {[%clk 0:00:13.5]} 63. Kc3 {[%clk 0:00:03.3]} 63... b2
{[%clk 0:00:09.4]} 64. Rxc2 {[%clk 0:00:03.4]} 64... Ka1 {[%clk 0:00:10]} 65.
Rxb2 {[%clk 0:00:03.3]} 1/2-1/2

[Event "Early-Titled-Tuesday-Blitz-July-09-2024"]
[Site "Chess.com"]
[Date "2024.07.09"]
[Round "2"]
[White "Oleg_Papayan"]
[Black "chessdjw"]
[Result "1-0"]
[WhiteElo "2565"]
[BlackElo "2767"]
[TimeControl "180+1"]
[EndTime "8:18:38 PDT"]
[Termination "Oleg_Papayan won by checkmate"]

1. d4 {[%clk 0:02:57.1]} 1... Nf6 {[%clk 0:03:00.1]} 2. Nc3 {[%clk 0:02:55.8]}
2... d5 {[%clk 0:03:00.1]} 3. Bf4 {[%clk 0:02:54.3]} 3... a6 {[%clk 0:02:56.2]}
4. e3 {[%clk 0:02:50.4]} 4... e6 {[%clk 0:02:54.3]} 5. a3 {[%clk 0:02:49]} 5...
Bd6 {[%clk 0:02:54.5]} 6. Nf3 {[%clk 0:02:47.5]} 6... O-O {[%clk 0:02:47.3]} 7.
h3 {[%clk 0:02:47.1]} 7... c5 {[%clk 0:02:45.1]} 8. dxc5 {[%clk 0:02:46.7]} 8...
Bxc5 {[%clk 0:02:43.6]} 9. Bd3 {[%clk 0:02:46.2]} 9... Nbd7 {[%clk 0:02:39.3]}
10. e4 {[%clk 0:02:39.3]} 10... dxe4 {[%clk 0:02:37.9]} 11. Nxe4 {[%clk
0:02:39.1]} 11... Nxe4 {[%clk 0:02:38.1]} 12. Bxe4 {[%clk 0:02:39.6]} 12... Nf6
{[%clk 0:02:35.1]} 13. Qxd8 {[%clk 0:02:33.5]} 13... Rxd8 {[%clk 0:02:36]} 14.
Bd3 {[%clk 0:02:26.1]} 14... b6 {[%clk 0:02:29]} 15. O-O {[%clk 0:02:10.7]}
15... Bb7 {[%clk 0:02:29.5]} 16. Ne5 {[%clk 0:02:10.5]} 16... h6 {[%clk
0:02:25.2]} 17. Rad1 {[%clk 0:02:03]} 17... Rac8 {[%clk 0:02:13.9]} 18. Rfe1
{[%clk 0:01:48.1]} 18... Kf8 {[%clk 0:02:13]} 19. Kf1 {[%clk 0:01:25.2]} 19...
b5 {[%clk 0:02:12.1]} 20. Ng4 {[%clk 0:01:10.2]} 20... Nxg4 {[%clk 0:02:04.4]}
21. hxg4 {[%clk 0:01:11.1]} 21... Bd4 {[%clk 0:02:01.7]} 22. c3 {[%clk
0:01:08.4]} 22... Bf6 {[%clk 0:02:02]} 23. f3 {[%clk 0:01:05.8]} 23... Rd7
{[%clk 0:01:49.1]} 24. Ke2 {[%clk 0:01:03.2]} 24... Rcd8 {[%clk 0:01:47]} 25.
Bc2 {[%clk 0:01:02.7]} 25... Bd5 {[%clk 0:01:43.2]} 26. Kf2 {[%clk 0:00:48.1]}
26... a5 {[%clk 0:01:34.2]} 27. Rd2 {[%clk 0:00:40.3]} 27... Bc4 {[%clk
0:01:28.7]} 28. Red1 {[%clk 0:00:35.9]} 28... Ke7 {[%clk 0:01:18.1]} 29. Rxd7+
{[%clk 0:00:26.9]} 29... Rxd7 {[%clk 0:01:19]} 30. Rxd7+ {[%clk 0:00:26.8]}
30... Kxd7 {[%clk 0:01:19.9]} 31. Ke3 {[%clk 0:00:17.3]} 31... Bg5 {[%clk
0:01:15.4]} 32. g3 {[%clk 0:00:15.8]} 32... e5 {[%clk 0:01:13.6]} 33. Bxg5
{[%clk 0:00:14.8]} 33... hxg5 {[%clk 0:01:14.5]} 34. b3 {[%clk 0:00:10.1]} 34...
Bd5 {[%clk 0:01:11.7]} 35. b4 {[%clk 0:00:08.6]} 35... axb4 {[%clk 0:01:03.8]}
36. cxb4 {[%clk 0:00:09.5]} 36... Kd6 {[%clk 0:00:59.3]} 37. a4 {[%clk
0:00:09.9]} 37... bxa4 {[%clk 0:00:58.2]} 38. Bxa4 {[%clk 0:00:10.8]} 38... f6
{[%clk 0:00:55.8]} 39. Bb5 {[%clk 0:00:10.4]} 39... Bb3 {[%clk 0:00:51]} 40. Bd3
{[%clk 0:00:10.5]} 40... Kd5 {[%clk 0:00:48.5]} 41. Bb5 {[%clk 0:00:07.2]} 41...
Bc4 {[%clk 0:00:26.8]} 42. Be8 {[%clk 0:00:06.8]} 42... Kd6 {[%clk 0:00:19.9]}
43. Ke4 {[%clk 0:00:04.2]} 43... Ba2 {[%clk 0:00:16.2]} 44. Ke3 {[%clk
0:00:03.9]} 44... Bc4 {[%clk 0:00:15.5]} 45. Ke4 {[%clk 0:00:03.6]} 45... Bd5+
{[%clk 0:00:16.1]} 46. Ke3 {[%clk 0:00:04]} 46... Bb7 {[%clk 0:00:16.4]} 47. Bb5
{[%clk 0:00:04.2]} 47... Kd5 {[%clk 0:00:16.5]} 48. Be8 {[%clk 0:00:03.8]} 48...
Kc4 {[%clk 0:00:15.6]} 49. b5 {[%clk 0:00:04.3]} 49... Kc5 {[%clk 0:00:16.2]}
50. f4 {[%clk 0:00:04.5]} 50... gxf4+ {[%clk 0:00:15.6]} 51. gxf4 {[%clk
0:00:05.4]} 51... g5 {[%clk 0:00:15.4]} 52. fxg5 {[%clk 0:00:04.4]} 52... fxg5
{[%clk 0:00:15.2]} 53. Bd7 {[%clk 0:00:05]} 53... Bd5 {[%clk 0:00:14.9]} 54. Be8
{[%clk 0:00:04.8]} 54... Be6 {[%clk 0:00:12.6]} 55. Kf3 {[%clk 0:00:05.3]} 55...
Kd4 {[%clk 0:00:11.4]} 56. Bc6 {[%clk 0:00:02.9]} 56... Kc5 {[%clk 0:00:05.9]}
57. Be8 {[%clk 0:00:02.5]} 57... Bd5+ {[%clk 0:00:05.5]} 58. Ke3 {[%clk
0:00:02.4]} 58... Bg2 {[%clk 0:00:03.1]} 59. Bd7 {[%clk 0:00:02]} 59... Kd5
{[%clk 0:00:01.1]} 60. Bc6+ {[%clk 0:00:02.1]} 60... Kc5 {[%clk 0:00:01.4]} 61.
Bxg2 {[%clk 0:00:03]} 61... Kxb5 {[%clk 0:00:02]} 62. Ke4 {[%clk 0:00:03.6]}
62... Kc5 {[%clk 0:00:02.6]} 63. Kxe5 {[%clk 0:00:04.3]} 63... Kc4 {[%clk
0:00:02.9]} 64. Kf5 {[%clk 0:00:05.2]} 64... Kd3 {[%clk 0:00:03.8]} 65. Kxg5
{[%clk 0:00:06]} 65... Ke3 {[%clk 0:00:04.7]} 66. Kf5 {[%clk 0:00:06.6]} 66...
Kf2 {[%clk 0:00:05]} 67. g5 {[%clk 0:00:07.5]} 67... Kg3 {[%clk 0:00:05.8]} 68.
g6 {[%clk 0:00:08.4]} 68... Kh4 {[%clk 0:00:06.5]} 69. Kf6 {[%clk 0:00:09.3]}
69... Kh5 {[%clk 0:00:07.4]} 70. g7 {[%clk 0:00:10.2]} 70... Kh6 {[%clk
0:00:08.1]} 71. Kf7 {[%clk 0:00:11.1]} 71... Kh7 {[%clk 0:00:08.5]} 72. Bh1
{[%clk 0:00:12]} 72... Kh6 {[%clk 0:00:09.4]} 73. g8=Q {[%clk 0:00:11.9]} 73...
Kh5 {[%clk 0:00:10.3]} 74. Kf6 {[%clk 0:00:12.4]} 74... Kh4 {[%clk 0:00:11.2]}
75. Kf5 {[%clk 0:00:12.4]} 75... Kh3 {[%clk 0:00:12.1]} 76. Kf4 {[%clk 0:00:13]}
76... Kh2 {[%clk 0:00:13]} 77. Qg2# {[%clk 0:00:12.7]} 1-0

[Event "Early-Titled-Tuesday-Blitz-July-09-2024"]
[Site "Chess.com"]
[Date "2024.07.09"]
[Round "2"]
[White "Dixit_Nikhil"]
[Black "BogdanDeac"]
[Result "0-1"]
[WhiteElo "2659"]
[BlackElo "3019"]
[TimeControl "180+1"]
[EndTime "8:18:39 PDT"]
[Termination "BogdanDeac won by checkmate"]

1. e4 {[%clk 0:03:00.9]} 1... c5 {[%clk 0:02:59.6]} 2. Nf3 {[%clk 0:03:01.2]}
2... d6 {[%clk 0:02:56.9]} 3. c3 {[%clk 0:02:57.5]} 3... Nf6 {[%clk 0:02:56.5]}
4. Be2 {[%clk 0:02:57.6]} 4... g6 {[%clk 0:02:54.3]} 5. O-O {[%clk 0:02:56.1]}
5... Bg7 {[%clk 0:02:52.5]} 6. Bb5+ {[%clk 0:02:56.5]} 6... Nfd7 {[%clk
0:02:51.8]} 7. d4 {[%clk 0:02:53.7]} 7... a6 {[%clk 0:02:51.7]} 8. Bd3 {[%clk
0:02:50.1]} 8... cxd4 {[%clk 0:02:46.1]} 9. cxd4 {[%clk 0:02:49]} 9... Nc6
{[%clk 0:02:46.7]} 10. d5 {[%clk 0:02:47.2]} 10... Nce5 {[%clk 0:02:23]} 11.
Nxe5 {[%clk 0:02:45.7]} 11... Nxe5 {[%clk 0:02:23.9]} 12. Be2 {[%clk 0:02:46.3]}
12... Nd7 {[%clk 0:02:24.4]} 13. Nc3 {[%clk 0:02:45.5]} 13... Nc5 {[%clk
0:02:24.1]} 14. Be3 {[%clk 0:02:43.8]} 14... O-O {[%clk 0:02:14.2]} 15. Bd4
{[%clk 0:02:42]} 15... Nd7 {[%clk 0:02:08.8]} 16. Bxg7 {[%clk 0:02:40.1]} 16...
Kxg7 {[%clk 0:02:09.7]} 17. Qd4+ {[%clk 0:02:40.2]} 17... Kg8 {[%clk 0:02:09.6]}
18. Rac1 {[%clk 0:02:33.8]} 18... Qb6 {[%clk 0:02:09.3]} 19. Qxb6 {[%clk
0:02:26.7]} 19... Nxb6 {[%clk 0:02:09]} 20. a4 {[%clk 0:02:26.6]} 20... Nd7
{[%clk 0:01:57.1]} 21. a5 {[%clk 0:02:23.1]} 21... Nf6 {[%clk 0:01:56.4]} 22. f3
{[%clk 0:02:14.5]} 22... Bd7 {[%clk 0:01:55.9]} 23. Kf2 {[%clk 0:02:03.5]} 23...
b6 {[%clk 0:01:18.7]} 24. b4 {[%clk 0:01:32.1]} 24... Rfb8 {[%clk 0:01:16.9]}
25. Rb1 {[%clk 0:01:31.3]} 25... Ne8 {[%clk 0:01:09.4]} 26. Ke3 {[%clk
0:01:30.3]} 26... h5 {[%clk 0:01:08.1]} 27. Rfc1 {[%clk 0:01:26.5]} 27... Kf8
{[%clk 0:01:05.8]} 28. Kd2 {[%clk 0:01:22.7]} 28... Nf6 {[%clk 0:01:01.3]} 29.
h4 {[%clk 0:01:15.5]} 29... Ke8 {[%clk 0:01:00.6]} 30. Bd3 {[%clk 0:01:14.7]}
30... Kd8 {[%clk 0:01:00.1]} 31. Ne2 {[%clk 0:01:15]} 31... b5 {[%clk
0:00:40.3]} 32. Nd4 {[%clk 0:01:14.2]} 32... Rc8 {[%clk 0:00:40.5]} 33. Rxc8+
{[%clk 0:01:08.9]} 33... Rxc8 {[%clk 0:00:35.7]} 34. Rc1 {[%clk 0:01:01.8]}
34... Rxc1 {[%clk 0:00:35.3]} 35. Kxc1 {[%clk 0:01:02.7]} 35... e6 {[%clk
0:00:35.8]} 36. dxe6 {[%clk 0:01:00.4]} 36... fxe6 {[%clk 0:00:32.8]} 37. Kd2
{[%clk 0:01:00.5]} 37... e5 {[%clk 0:00:31.8]} 38. Nc2 {[%clk 0:00:52.3]} 38...
Be6 {[%clk 0:00:29.7]} 39. Ne3 {[%clk 0:00:50.5]} 39... Nd7 {[%clk 0:00:24.7]}
40. g4 {[%clk 0:00:30.2]} 40... Nb8 {[%clk 0:00:22.1]} 41. gxh5 {[%clk
0:00:27.3]} 41... gxh5 {[%clk 0:00:21.9]} 42. Nd5 {[%clk 0:00:27.8]} 42... Nc6
{[%clk 0:00:20.4]} 43. Nf6 {[%clk 0:00:23.5]} 43... Nxb4 {[%clk 0:00:09.9]} 44.
Nxh5 {[%clk 0:00:23.4]} 44... Ke7 {[%clk 0:00:09.3]} 45. Ng3 {[%clk 0:00:20.8]}
45... Nc6 {[%clk 0:00:09.3]} 46. h5 {[%clk 0:00:19.8]} 46... Nxa5 {[%clk
0:00:08.7]} 47. h6 {[%clk 0:00:20]} 47... Kf8 {[%clk 0:00:08.2]} 48. Nh5 {[%clk
0:00:18.9]} 48... Bg8 {[%clk 0:00:05.9]} 49. Nf6 {[%clk 0:00:18.4]} 49... Bf7
{[%clk 0:00:06.1]} 50. Ke3 {[%clk 0:00:15.9]} 50... Nc4+ {[%clk 0:00:05]} 51.
Kf2 {[%clk 0:00:12.8]} 51... a5 {[%clk 0:00:05.1]} 52. f4 {[%clk 0:00:08.8]}
52... a4 {[%clk 0:00:03.9]} 53. fxe5 {[%clk 0:00:08.7]} 53... dxe5 {[%clk
0:00:03]} 54. h7 {[%clk 0:00:05.5]} 54... Kg7 {[%clk 0:00:03.2]} 55. Bb1 {[%clk
0:00:05.7]} 55... a3 {[%clk 0:00:03.2]} 56. Ba2 {[%clk 0:00:06.1]} 56... Nd6
{[%clk 0:00:03.5]} 57. Bb1 {[%clk 0:00:05.3]} 57... a2 {[%clk 0:00:03.4]} 58.
Bxa2 {[%clk 0:00:05.8]} 58... Bxa2 {[%clk 0:00:04.2]} 59. Ke3 {[%clk 0:00:06.5]}
59... b4 {[%clk 0:00:04.6]} 60. Nd7 {[%clk 0:00:06.2]} 60... b3 {[%clk
0:00:04.1]} 61. Nxe5 {[%clk 0:00:06.1]} 61... b2 {[%clk 0:00:04.3]} 62. Nd3
{[%clk 0:00:07]} 62... b1=Q {[%clk 0:00:04.4]} 63. Kd4 {[%clk 0:00:07.9]} 63...
Kxh7 {[%clk 0:00:04.7]} 64. e5 {[%clk 0:00:08.4]} 64... Nb5+ {[%clk 0:00:05.6]}
65. Kc5 {[%clk 0:00:08.5]} 65... Qxd3 {[%clk 0:00:05.3]} 66. e6 {[%clk
0:00:09.4]} 66... Qd5+ {[%clk 0:00:05.6]} 67. Kb4 {[%clk 0:00:09.4]} 67... Qxe6
{[%clk 0:00:06.2]} 68. Kc5 {[%clk 0:00:10.3]} 68... Qc4+ {[%clk 0:00:06.1]} 69.
Kb6 {[%clk 0:00:10.4]} 69... Nd4 {[%clk 0:00:06.5]} 70. Ka5 {[%clk 0:00:11.3]}
70... Qb5# {[%clk 0:00:06.7]} 0-1

[Event "Early-Titled-Tuesday-Blitz-July-09-2024"]
[Site "Chess.com"]
[Date "2024.07.09"]
[Round "2"]
[White "HajiyevKanan"]
[Black "Alexchess1984"]
[Result "0-1"]
[WhiteElo "2566"]
[BlackElo "2804"]
[TimeControl "180+1"]
[EndTime "8:18:42 PDT"]
[Termination "Alexchess1984 won on time"]

1. b3 {[%clk 0:02:56.2]} 1... Nf6 {[%clk 0:02:59.1]} 2. Bb2 {[%clk 0:02:56.4]}
2... g6 {[%clk 0:02:58.8]} 3. Nf3 {[%clk 0:02:56.8]} 3... Bg7 {[%clk 0:02:58.6]}
4. e3 {[%clk 0:02:57.7]} 4... O-O {[%clk 0:02:57.9]} 5. Be2 {[%clk 0:02:58.2]}
5... d6 {[%clk 0:02:55.3]} 6. O-O {[%clk 0:02:57.9]} 6... e5 {[%clk 0:02:55.1]}
7. c4 {[%clk 0:02:58.1]} 7... Re8 {[%clk 0:02:53.2]} 8. d3 {[%clk 0:02:58.4]}
8... Nbd7 {[%clk 0:02:45.3]} 9. Nbd2 {[%clk 0:02:58.8]} 9... Nf8 {[%clk
0:02:45.1]} 10. b4 {[%clk 0:02:57.4]} 10... b6 {[%clk 0:02:32.4]} 11. a4 {[%clk
0:02:57]} 11... a5 {[%clk 0:02:32.3]} 12. bxa5 {[%clk 0:02:50.5]} 12... bxa5
{[%clk 0:02:26.1]} 13. c5 {[%clk 0:02:47.2]} 13... Nd5 {[%clk 0:02:19.6]} 14.
Nc4 {[%clk 0:02:33.6]} 14... Nb4 {[%clk 0:02:16.9]} 15. cxd6 {[%clk 0:02:30.8]}
15... cxd6 {[%clk 0:02:16.6]} 16. d4 {[%clk 0:02:24]} 16... e4 {[%clk
0:02:12.6]} 17. Nfd2 {[%clk 0:02:23.5]} 17... Ba6 {[%clk 0:02:05.6]} 18. Bc3
{[%clk 0:02:02.9]} 18... d5 {[%clk 0:01:57.5]} 19. Ne5 {[%clk 0:01:29.9]} 19...
Bxe2 {[%clk 0:01:42.4]} 20. Qxe2 {[%clk 0:01:30.8]} 20... Rc8 {[%clk 0:01:35]}
21. Bxb4 {[%clk 0:01:26.9]} 21... axb4 {[%clk 0:01:35.9]} 22. Qb5 {[%clk
0:01:23.2]} 22... Qd6 {[%clk 0:01:26.7]} 23. Nb3 {[%clk 0:01:13.3]} 23... f6
{[%clk 0:01:23.4]} 24. f4 {[%clk 0:00:45.6]} 24... fxe5 {[%clk 0:01:22]} 25.
fxe5 {[%clk 0:00:46.5]} 25... Qc6 {[%clk 0:01:11.9]} 26. Qxb4 {[%clk 0:00:44.8]}
26... Rb8 {[%clk 0:01:12]} 27. Qc5 {[%clk 0:00:33.7]} 27... Qxc5 {[%clk
0:01:09.1]} 28. Nxc5 {[%clk 0:00:34.6]} 28... Ne6 {[%clk 0:01:08]} 29. Nd7
{[%clk 0:00:33.9]} 29... Rb7 {[%clk 0:01:03.2]} 30. Nf6+ {[%clk 0:00:24.3]}
30... Bxf6 {[%clk 0:01:03.2]} 31. Rxf6 {[%clk 0:00:25.2]} 31... Rf7 {[%clk
0:00:53.9]} 32. Rxf7 {[%clk 0:00:19.5]} 32... Kxf7 {[%clk 0:00:53.6]} 33. a5
{[%clk 0:00:20.4]} 33... Ra8 {[%clk 0:00:52.7]} 34. a6 {[%clk 0:00:20.5]} 34...
Ra7 {[%clk 0:00:53.2]} 35. Ra5 {[%clk 0:00:20.4]} 35... Nc7 {[%clk 0:00:53.5]}
36. Rc5 {[%clk 0:00:18.2]} 36... Ke6 {[%clk 0:00:42]} 37. Rc6+ {[%clk 0:00:17]}
37... Kd7 {[%clk 0:00:42.2]} 38. Rd6+ {[%clk 0:00:17.3]} 38... Kc8 {[%clk
0:00:37.9]} 39. Rf6 {[%clk 0:00:06.8]} 39... Rxa6 {[%clk 0:00:36.4]} 40. Rf8+
{[%clk 0:00:06.5]} 40... Kb7 {[%clk 0:00:35.8]} 41. Rf7 {[%clk 0:00:07.4]} 41...
h5 {[%clk 0:00:35.3]} 42. Kf2 {[%clk 0:00:07.9]} 42... Re6 {[%clk 0:00:30.7]}
43. g4 {[%clk 0:00:07]} 43... hxg4 {[%clk 0:00:29.7]} 44. Kg3 {[%clk 0:00:07.7]}
44... Kc6 {[%clk 0:00:29.6]} 45. Kxg4 {[%clk 0:00:08]} 45... Na6 {[%clk
0:00:24.3]} 46. h4 {[%clk 0:00:08.3]} 46... Nb4 {[%clk 0:00:24.5]} 47. Rf8
{[%clk 0:00:06.4]} 47... Kd7 {[%clk 0:00:22.2]} 48. Kg5 {[%clk 0:00:04.8]} 48...
Nc2 {[%clk 0:00:21.8]} 49. Rf7+ {[%clk 0:00:03]} 49... Ke8 {[%clk 0:00:21.4]}
50. Rf6 {[%clk 0:00:03.4]} 50... Ke7 {[%clk 0:00:14.1]} 51. Rxg6 {[%clk
0:00:02.7]} 51... Nxe3 {[%clk 0:00:13.5]} 52. Rg7+ {[%clk 0:00:02.3]} 52... Kf8
{[%clk 0:00:13.5]} 53. Rd7 {[%clk 0:00:02.7]} 53... Re7 {[%clk 0:00:13.7]} 54.
Rd6 {[%clk 0:00:02.7]} 54... Rg7+ {[%clk 0:00:13.6]} 55. Kf6 {[%clk 0:00:02.6]}
55... Rf7+ {[%clk 0:00:13.3]} 56. Kg6 {[%clk 0:00:03.1]} 56... Rg7+ {[%clk
0:00:12.8]} 57. Kf6 {[%clk 0:00:03.3]} 57... Ng4+ {[%clk 0:00:13.5]} 58. Kf5
{[%clk 0:00:03.6]} 58... e3 {[%clk 0:00:13.2]} 59. Ra6 {[%clk 0:00:03.3]} 59...
e2 {[%clk 0:00:12.6]} 60. Ra8+ {[%clk 0:00:03.1]} 60... Kf7 {[%clk 0:00:11.4]}
61. Ra7+ {[%clk 0:00:04]} 61... Kg8 {[%clk 0:00:11.7]} 62. Ra1 {[%clk
0:00:03.9]} 62... Ne3+ {[%clk 0:00:11.3]} 63. Kf4 {[%clk 0:00:03.8]} 63... Ng2+
{[%clk 0:00:11.7]} 64. Kf3 {[%clk 0:00:02.7]} 64... e1=Q {[%clk 0:00:12.6]} 65.
Rxe1 {[%clk 0:00:03.2]} 65... Nxe1+ {[%clk 0:00:13.2]} 66. Kf4 {[%clk
0:00:04.1]} 66... Nc2 {[%clk 0:00:13.2]} 67. e6 {[%clk 0:00:04]} 67... Nxd4
{[%clk 0:00:13.5]} 68. Ke5 {[%clk 0:00:03.4]} 68... Nxe6 {[%clk 0:00:13.9]} 0-1